fUSD/lending_fUSD_20251225
["ID","MTS","AMOUNT","RATE_DAILY","PERIOD"]
[399713311,1766631149646,-804.57,0.0003863,2]
[399713312,1766631149655,-656.28,0.0003863,120]
[399713313,1766631149665,-369.02957675,0.00038642,2]
[399713314,1766631149674,-594.91584266,0.00038642,2]
[399713315,1766631149684,-363.92649739,0.00038642,2]
[399713316,1766631149694,-303.65408713,0.00038642,2]
[399713317,1766631149705,-577.1019099,0.00038642,2]
[399713318,1766631149714,-300.09541867,0.00038642,2]
[399713319,1766631149724,-1084.99093374,0.00038642,2]
[399713320,1766631149734,-1000.0,0.00038662,7]
[399713321,1766631149744,-211.0,0.00038663,90]
[399713322,1766631149754,-200.0,0.00038687,20]
[399713323,1766631149764,-300.0,0.00038698,2]
[399713324,1766631149774,-1000.0,0.00038709,7]
[399713325,1766631149783,-1000.0,0.00038748,7]
[399713326,1766631149793,-1000.0,0.00038758,7]
[399713327,1766631149803,-1529.38,0.00038767,30]
[399713328,1766631149813,-1529.38,0.00038767,30]
[399713329,1766631149824,-1529.38,0.00038767,30]
[399713330,1766631149833,-1529.38,0.00038767,30]
[399713331,1766631149843,-473.0,0.00038785,2]
[399713332,1766631149853,-1000.0,0.00038788,7]
[399713333,1766631149864,-165.3,0.000388,27]
[399713334,1766631149875,-165.3,0.000388,27]
[399713335,1766631149885,-1127.9661,0.00038805,3]
[399713336,1766631149895,-2000.0,0.00038805,3]
[399713337,1766631149906,-150.0,0.00038807,7]
[399713338,1766631149917,-797.48281101,0.0003881,120]
[399713339,1766631149927,-1000.0,0.00038818,7]
[399713340,1766631149939,-1000.0,0.00038824,7]
[399713341,1766631149949,-150.0,0.00038843,7]
[399713342,1766631149959,-1000.0,0.00038844,7]
[399713343,1766631149969,-407.82520069,0.000389,31]
[399713344,1766631149978,-2000.0,0.000389,2]
[399713345,1766631149987,-714.65,0.00038904,7]
[399713346,1766631149997,-1367.09,0.00038904,120]
[399713347,1766631150008,-1354.83,0.00038904,2]
[399713348,1766631150018,-641.85,0.00038904,10]
[399713349,1766631150028,-500.0,0.00038904,120]
[399713350,1766631150038,-505.07,0.00038904,2]
[399713351,1766631150048,-516.17748959,0.00038904,120]
[399713352,1766631150059,-573.17,0.00038904,120]
[399713353,1766631150068,-500.0,0.00038904,120]
[399713354,1766631150078,-373.28929202,0.00038904,120]
[399713355,1766631150088,-3742.25,0.00038904,120]
[399713356,1766631150098,-639.08,0.00038904,120]
[399713357,1766631150195,-566.13,0.00038904,120]
[399713358,1766631150206,-509.97,0.00038904,120]
[399713359,1766631150216,-876.11,0.00038904,120]
[399713360,1766631150225,-500.0,0.00038904,120]
[399713361,1766631150235,-536.03,0.00038904,120]
[399713362,1766631150247,-632.57,0.00038904,120]
[399713363,1766631150257,-998.82,0.00038904,120]
[399713364,1766631150268,-646.63,0.00038904,120]
[399713365,1766631150278,-572.07,0.00038904,120]
[399713366,1766631150289,-642.5,0.00038904,120]
[399713367,1766631150299,-574.86,0.00038904,120]
[399713368,1766631150309,-642.68,0.00038904,120]
[399713369,1766631150320,-1734.97,0.00038904,120]
[399713370,1766631150330,-564.76,0.00038904,120]
[399713371,1766631150339,-543.77,0.00038904,120]
[399713372,1766631150349,-609.66,0.00038904,120]
[399713373,1766631150359,-657.18,0.00038904,120]
[399713374,1766631150369,-543.46,0.00038904,120]
[399713375,1766631150378,-974.52,0.00038904,120]
[399713376,1766631150388,-597.79,0.00038904,120]
[399713377,1766631150397,-511.3,0.00038904,120]
[399713378,1766631150407,-592.68,0.00038904,120]
[399713379,1766631150417,-519.26,0.00038904,30]
[399713380,1766631150427,-352.37,0.00038904,2]
[399713381,1766631150438,-421.39,0.00038904,2]
[399713382,1766631150448,-500.0,0.00038904,120]
[399713383,1766631150458,-953.97,0.00038904,120]
[399713384,1766631150468,-2740.45,0.00038904,120]
[399713385,1766631150479,-524.99,0.00038904,120]
[399713386,1766631150489,-705.78,0.00038904,14]
[399713387,1766631150499,-555.98,0.00038904,120]
[399713388,1766631150510,-737.49,0.00038904,120]
[399713389,1766631150520,-518.13,0.00038904,120]
[399713390,1766631150530,-580.51,0.00038904,120]
[399713391,1766631150541,-560.48,0.00038904,120]
[399713392,1766631150550,-727.69,0.00038904,120]
[399713393,1766631150560,-536.36,0.00038904,120]
[399713394,1766631150569,-514.27,0.00038904,120]
[399713395,1766631150579,-638.07669902,0.00038904,120]
[399713396,1766631150589,-578.18846758,0.00038904,120]
[399713397,1766631150598,-14053.25,0.00038904,5]
[399713398,1766631150607,-804.57,0.00038904,2]
[399713399,1766631150618,-656.28,0.00038904,120]
[399713400,1766631150628,-11883.59,0.00038904,2]
[399713401,1766631150638,-1000.0,0.00038925,7]
[399713402,1766631150648,-1000.0,0.0003893,7]
[399713403,1766631150658,-1000.0,0.00038961,7]
[399713404,1766631150669,-174.61919141,0.00038987,54]
[399713405,1766631150681,-500.0,0.00038987,54]
[399713406,1766631150692,-500.0,0.00038987,54]
[399713407,1766631150702,-151.0,0.00038987,54]
[399713408,1766631150712,-151.0,0.00038987,54]
[399713409,1766631150721,-500.0,0.00038987,54]
[399713410,1766631150731,-250.0,0.00038987,54]
[399713411,1766631150740,-478.75725327,0.00038987,54]
[399713412,1766631150750,-151.0,0.00038987,54]
[399713413,1766631150760,-500.0,0.00038987,54]
[399713414,1766631150769,-500.0,0.00038987,54]
[399713415,1766631150779,-500.0,0.00038987,54]
[399713416,1766631150788,-250.0,0.00038987,54]
[399713417,1766631150797,-601.3376128,0.00038987,54]
[399713418,1766631150807,-250.0,0.00038987,54]
[399713419,1766631150817,-250.0,0.00038987,54]
[399713420,1766631150827,-372.98075512,0.00038987,54]
[399713421,1766631150839,-250.0,0.00038987,54]
[399713422,1766631150849,-500.0,0.00038987,54]
[399713423,1766631150859,-168.3888056,0.00038988,54]
[399713424,1766631150868,-500.0,0.00038988,54]
[399713425,1766631150878,-500.0,0.00038988,54]
[399713426,1766631150888,-151.0,0.00038988,54]
[399713427,1766631150897,-151.0,0.00038988,54]
[399713428,1766631150907,-500.0,0.00038988,54]
[399713429,1766631150916,-557.5788265,0.00038988,54]
[399713430,1766631150925,-250.0,0.00038988,54]
[399713431,1766631150935,-461.67526834,0.00038988,54]
[399713432,1766631150944,-151.0,0.00038988,54]
[399713433,1766631150955,-500.0,0.00038988,54]
[399713434,1766631150964,-500.0,0.00038988,54]
[399713435,1766631150974,-500.0,0.00038988,54]
[399713436,1766631150983,-250.0,0.00038988,54]
[399713437,1766631150992,-579.88197956,0.00038988,54]
[399713438,1766631151002,-250.0,0.00038988,54]
[399713439,1766631151012,-250.0,0.00038988,54]
[399713440,1766631151022,-250.0,0.00038988,54]
[399713441,1766631151032,-500.0,0.00038988,54]
[399713442,1766631151042,-300.250953,0.00038997,93]
[399713443,1766631151052,-151.0,0.00038997,14]
[399713444,1766631151062,-151.0,0.00038997,14]
[399713445,1766631151071,-151.0,0.00038997,14]
[399713446,1766631151081,-151.0,0.00038997,14]
[399713447,1766631151090,-151.0,0.00038997,14]
[399713448,1766631151100,-154.12333935,0.00038997,14]
[399713449,1766631151110,-156.587,0.00038998,30]
[399713450,1766631151120,-500.0,0.00038998,30]
[399713451,1766631151131,-151.0,0.00038998,30]
[399713452,1766631151141,-500.0,0.00038998,30]
[399713453,1766631151151,-151.0,0.00038998,30]
[399713454,1766631151161,-500.0,0.00038998,30]
[399713455,1766631151171,-162.380719,0.00038998,31]
[399713456,1766631151181,-500.0,0.00038998,31]
[399713457,1766631151192,-151.0,0.00038998,31]
[399713458,1766631151201,-500.0,0.00038998,31]
[399713459,1766631151211,-151.0,0.00038998,31]
[399713460,1766631151221,-500.0,0.00038998,31]
[399713461,1766631151231,-518.5,0.00038998,30]
[399713462,1766631151241,-537.6845,0.00038998,31]
[399713463,1766631151256,-250.0,0.00038998,30]
[399713464,1766631151266,-250.0,0.00038998,31]
[399713465,1766631151277,-429.318,0.00038998,30]
[399713466,1766631151287,-445.202766,0.00038998,31]
[399713467,1766631151302,-151.0,0.00038998,30]
[399713468,1766631151313,-151.0,0.00038998,31]
[399713469,1766631151325,-500.0,0.00038998,30]
[399713470,1766631151336,-500.0,0.00038998,31]
[399713471,1766631151347,-160.0,0.00038998,30]
[399713472,1766631151358,-204.36206726,0.00038998,31]
[399713473,1766631151369,-500.0,0.00038998,30]
[399713474,1766631151379,-500.0,0.00038998,31]
[399713475,1766631151390,-500.0,0.00038998,30]
[399713476,1766631151400,-250.0,0.00038998,30]
[399713477,1766631151410,-500.0,0.00038998,31]
[399713478,1766631151421,-250.0,0.00038998,31]
[399713479,1766631151431,-539.24,0.00038998,30]
[399713480,1766631151442,-559.19188,0.00038998,31]
[399713481,1766631151452,-151.0,0.00038998,30]
[399713482,1766631151462,-250.0,0.00038998,30]
[399713483,1766631151473,-250.0,0.00038998,31]
[399713484,1766631151484,-250.0,0.00038998,30]
[399713485,1766631151495,-311.1,0.00038998,30]
[399713486,1766631151506,-250.0,0.00038998,31]
[399713487,1766631151517,-250.0,0.00038998,30]
[399713488,1766631151527,-254.70778633,0.00038998,31]
[399713489,1766631151538,-250.0,0.00038998,30]
[399713490,1766631151548,-250.0,0.00038998,31]
[399713491,1766631151558,-500.0,0.00038998,30]
[399713492,1766631151569,-500.0,0.00038998,31]
[399713493,1766631151579,-151.0,0.00038999,31]
[399713494,1766631151590,-151.0,0.00038999,31]
[399713495,1766631151600,-500.0,0.00038999,31]
[399713496,1766631151610,-500.0,0.00038999,31]
[399713497,1766631151620,-151.0,0.00038999,31]
[399713498,1766631151631,-500.0,0.00038999,31]
[399713499,1766631151641,-500.0,0.00038999,31]
[399713500,1766631151656,-250.0,0.00038999,31]
[399713501,1766631151666,-414.0,0.00038999,31]
[399713502,1766631151677,-151.0,0.00038999,31]
[399713503,1766631151687,-500.0,0.00038999,31]
[399713504,1766631151698,-160.0,0.00038999,31]
[399713505,1766631151709,-200.0,0.00038999,31]
[399713506,1766631151719,-500.0,0.00038999,31]
[399713507,1766631151730,-500.0,0.00038999,31]
[399713508,1766631151740,-250.0,0.00038999,31]
[399713509,1766631151751,-520.0,0.00038999,31]
[399713510,1766631151760,-802.51915667,0.00038999,31]
[399713511,1766631151771,-151.0,0.00038999,31]
[399713512,1766631151782,-849.12691588,0.00038999,31]
[399713513,1766631151793,-250.0,0.00038999,31]
[399713514,1766631151804,-250.0,0.00038999,31]
[399713515,1766631151828,-300.0,0.00038999,31]
[399713516,1766631151839,-250.0,0.00038999,31]
[399713517,1766631151851,-543.0,0.00038999,31]
[399713518,1766631151862,-543.0,0.00038999,31]
[399713519,1766631151872,-543.0,0.00038999,31]
[399713520,1766631151882,-543.0,0.00038999,31]
[399713521,1766631151892,-250.0,0.00038999,31]
[399713522,1766631151903,-500.0,0.00038999,31]
[399713523,1766631151914,-4817257.47649691,0.00039,2]
[399713524,1766631152368,-405.433146,0.00039,2]
[399713525,1766631152386,-468.8917965,0.00039,2]
[399713526,1766631152398,-13441.71464927,0.00039,2]
[399713527,1766631152411,-3007.79281075,0.00039,2]
[399713528,1766631152432,-180.545858,0.00032877,31]
[399713529,1766631152443,-90.82416682,0.00039,2]
[399713530,1766631152603,-223.45632631,0.000169,2]
[399713531,1766631152614,-72.6372314,0.00028263,2]
[399713532,1766631152628,-1058.32946893,0.00028263,2]
[399713533,1766631152641,-537.47173744,0.00028263,2]
[399713534,1766631152654,-761.56156223,0.00028263,2]
[399713535,1766631152665,-2430.0,0.00031263,2]
[399713536,1766631152675,-151.0,0.00032877,31]
[399713537,1766631152686,-180.545858,0.00032877,31]
[399713538,1766631152697,-151.0,0.00032877,31]
[399713539,1766631152707,-180.545858,0.00032877,31]
[399713540,1766631152718,-151.0,0.00032877,31]
[399713541,1766631152729,-180.545858,0.00032877,31]
[399713542,1766631152740,-151.0,0.00032877,31]
[399713543,1766631152751,-180.545858,0.00032877,31]
[399713544,1766631152762,-151.0,0.00032877,31]
[399713545,1766631152772,-151.0,0.00032877,31]
[399713546,1766631152782,-180.545858,0.00032877,31]
[399713547,1766631152793,-188.436865,0.00032877,31]
[399713548,1766631152804,-180.545858,0.00032877,31]
[399713549,1766631152815,-180.545858,0.00032877,31]
[399713550,1766631152826,-180.545858,0.00032877,31]
[399713551,1766631152837,-2073.78572358,0.00034263,2]
[399713552,1766631152883,-158.91560673,0.00034263,2]
[399713553,1766631152989,-197.29866969,0.00034263,2]
[399713554,1766631153001,-335.38448641,0.00037263,2]
[399713555,1766631153521,-180.545858,0.00032877,31]
[399713556,1766631153531,-180.545858,0.00032877,31]
[399713557,1766631153542,-180.545858,0.00032877,31]
[399713558,1766631153551,-180.545858,0.00032877,31]
[399713559,1766631153562,-180.545858,0.00032877,31]
[399713560,1766631153572,-180.545862,0.00032877,31]
[399713561,1766631153582,-2094.61551359,0.00037263,2]
[399713562,1766631153592,-1328.56671441,0.00039,2]
[399713563,1766631153604,-500.0,0.00039,2]
[399713564,1766631155824,-29961.97317269,0.00039,2]
[399713565,1766631156621,9531.07393331,0.00012743,2]
[399713566,1766631156649,10000.01,0.00012743,2]
[399713567,1766631156675,10000.01,0.00012743,2]
[399713568,1766631156701,10000.01,0.00012743,2]
[399713569,1766631156725,10000.01,0.00012743,2]
[399713570,1766631156750,10000.01,0.00012743,2]
[399713571,1766631156774,10000.01,0.00012743,2]
[399713572,1766631156800,10000.01,0.00012743,2]
[399713573,1766631156827,10000.01,0.00012743,2]
[399713574,1766631156850,10000.01,0.00012743,2]
[399713575,1766631160614,-156.19154645,0.00012662,2]
[399713576,1766631160642,-183.77130644,0.00012662,2]
[399713577,1766631160668,-300.0,0.00012703,2]
[399713578,1766631161336,-5550.28597102,0.00012743,2]
[399713579,1766631161350,-10000.01,0.00012743,2]
[399713580,1766631161364,-10000.01,0.00012743,2]
[399713581,1766631161378,-10000.01,0.00012743,2]
[399713582,1766631161391,-10000.01,0.00012743,2]
[399713583,1766631163455,-10000.01,0.00012743,2]
[399713584,1766631163556,-10000.01,0.00012743,2]
[399713585,1766631163688,-10000.01,0.00012743,2]
[399713586,1766631163810,-10000.01,0.00012743,2]
[399713587,1766631163917,-10000.01,0.00012743,2]
[399713588,1766631164049,-10000.01,0.00012743,2]
[399713589,1766631164151,-10000.01,0.00012743,2]
[399713590,1766631164287,-10000.01,0.00012743,2]
[399713591,1766631164379,-10000.01,0.00012743,2]
[399713592,1766631164533,-10000.01,0.00012743,2]
[399713593,1766631164642,-10000.01,0.00012743,2]
[399713594,1766631164800,-10000.01,0.00012743,2]
[399713595,1766631164946,-10000.01,0.00012743,2]
[399713596,1766631165070,-10000.01,0.00012743,2]
[399713597,1766631165170,-10000.01,0.00012743,2]
[399713598,1766631168584,-25000.0,0.00012743,2]
[399713599,1766631169435,-25000.0,0.00012743,2]
[399713600,1766631169835,-10000.01,0.00012743,2]
[399713601,1766631170141,-10000.01,0.00012743,2]
[399713602,1766631170176,-25000.0,0.00012743,2]
[399713603,1766631170266,-10000.01,0.00012743,2]
[399713604,1766631170400,-10000.01,0.00012743,2]
[399713605,1766631170504,-10000.01,0.00012743,2]
[399713606,1766631170614,-10000.01,0.00012743,2]
[399713607,1766631170727,-10000.01,0.00012743,2]
[399713608,1766631170838,-10000.01,0.00012743,2]
[399713609,1766631170895,-25000.0,0.00012743,2]
[399713610,1766631170952,-10000.01,0.00012743,2]
[399713611,1766631171065,-10000.01,0.00012743,2]
[399713612,1766631171209,-10000.01,0.00012743,2]
[399713613,1766631171467,-10000.01,0.00012743,2]
[399713614,1766631171591,-10000.01,0.00012743,2]
[399713615,1766631171702,-10000.01,0.00012743,2]
[399713616,1766631171804,-10000.01,0.00012743,2]
[399713617,1766631171855,-25000.0,0.00012743,2]
[399713618,1766631172584,-25000.0,0.00012743,2]
[399713619,1766631173423,-25000.0,0.00012743,2]
[399713620,1766631174091,-25000.0,0.00012743,2]
[399713621,1766631174819,-25000.0,0.00012743,2]
[399713622,1766631175624,-25000.0,0.00012743,2]
[399713623,1766631175710,-10000.01,0.00012743,2]
[399713624,1766631175925,-10000.01,0.00012743,2]
[399713625,1766631176065,-10000.01,0.00012743,2]
[399713626,1766631176290,-10000.01,0.00012743,2]
[399713627,1766631176389,-25000.0,0.00012743,2]
[399713628,1766631177120,-25000.0,0.00012743,2]
[399713629,1766631177964,-25000.0,0.00012743,2]
[399713630,1766631178764,-25000.0,0.00012743,2]
[399713631,1766631179554,-25000.0,0.00012743,2]
[399713632,1766631180380,-25000.0,0.00012743,2]
[399713633,1766631181182,-25000.0,0.00012743,2]
[399713634,1766631181649,-10000.01,0.00012743,2]
[399713635,1766631181766,-10000.01,0.00012743,2]
[399713636,1766631181878,-10000.01,0.00012743,2]
[399713637,1766631182145,-10000.01,0.00012743,2]
[399713638,1766631182324,-10000.01,0.00012743,2]
[399713639,1766631182484,-10000.01,0.00012743,2]
[399713640,1766631182582,-10000.01,0.00012743,2]
[399713641,1766631182708,-10000.01,0.00012743,2]
[399713642,1766631182834,-81.91990433,0.00012743,2]
[399713643,1766631182861,-9836.17019134,0.00012743,2]
[399713644,1766631182921,-1000.0,0.00012743,2]
[399713645,1766631182951,-1309.0356,0.00012743,2]
[399713646,1766631182982,-5381.9388,0.00012743,2]
[399713647,1766631183007,-19618.0612,0.00012743,2]
[399713648,1766631183049,-2643.6325,0.00012743,2]
[399713649,1766631184538,-150.74654374,0.00012842,2]
[399713650,1766631184562,-217.87538705,0.00012842,2]
[399713651,1766631184587,-150.74654374,0.00012842,2]
[399713652,1766631184619,-500.0,0.00012842,2]
[399713653,1766631184645,-500.0,0.00012842,2]
[399713654,1766631184671,-500.0,0.00012842,2]
[399713655,1766631184697,-608.43428082,0.00012842,2]
[399713656,1766631184725,-500.0,0.00012842,2]
[399713657,1766631184751,-500.0,0.00012842,2]
[399713658,1766631184775,-500.0,0.00012842,2]
[399713659,1766631184801,-500.0,0.00012842,2]
[399713660,1766631184827,-500.0,0.00012842,2]
[399713661,1766631184851,-500.0,0.00012842,2]
[399713662,1766631184877,-500.0,0.00012842,2]
[399713663,1766631184901,-500.0,0.00012842,2]
[399713664,1766631184930,-500.0,0.00012842,2]
[399713665,1766631184957,-500.0,0.00012842,2]
[399713666,1766631184982,-373.69983526,0.00012842,2]
[399713667,1766631185005,-152.6668106,0.00012842,2]
[399713668,1766631185031,-500.0,0.00012842,2]
[399713669,1766631185058,-500.0,0.00012842,2]
[399713670,1766631185090,-500.0,0.00012842,2]
[399713671,1766631185121,-500.0,0.00012842,2]
[399713672,1766631185148,-500.0,0.00012842,2]
[399713673,1766631185174,-500.0,0.00012842,2]
[399713674,1766631185199,-300.0,0.00012985,2]
[399713675,1766631198964,-373.59583,0.00013159,2]
[399713676,1766631199143,-296.19577068,0.00013226,2]
[399713677,1766631207719,13545.83059879,0.00012743,2]
[399713678,1766631207751,25000.0,0.00012743,2]
[399713679,1766631207781,25000.0,0.00012743,2]
[399713680,1766631207811,25000.0,0.00012743,2]
[399713697,1766631351953,-730.48714966,0.00012579,2]
[399713698,1766631354050,-397.7752429,0.00012579,2]
[399713699,1766631464452,-11580.005066,0.00012612,2]
[399713700,1766631464481,-1567.13510018,0.00012643,2]
[399713701,1766631464507,-739.76590816,0.00012643,2]
[399713702,1766631464534,-1200.0,0.00012676,2]
[399713703,1766631464562,-300.0,0.00012676,2]
[399713704,1766631464588,-300.0,0.00012709,2]
[399713705,1766631464616,-500.0,0.00012736,2]
[399713706,1766631464643,-222.4738,0.00012736,2]
[399713707,1766631464674,-500.0,0.00012736,2]
[399713708,1766631464699,-500.0,0.00012736,2]
[399713709,1766631464726,-500.0,0.00012736,2]
[399713710,1766631464752,-500.0,0.00012736,2]
[399713711,1766631464777,-500.0,0.00012736,2]
[399713712,1766631464803,-500.0,0.00012736,2]
[399713713,1766631464833,-500.0,0.00012736,2]
[399713714,1766631464859,-500.0,0.00012736,2]
[399713715,1766631464885,-151.0,0.00012736,2]
[399713716,1766631464912,-500.0,0.00012736,2]
[399713717,1766631464938,-151.0,0.00012736,2]
[399713718,1766631464964,-500.0,0.00012736,2]
[399713719,1766631464990,-500.0,0.00012736,2]
[399713720,1766631465017,-500.0,0.00012736,2]
[399713721,1766631465052,-151.0,0.00012736,2]
[399713722,1766631465079,-500.0,0.00012736,2]
[399713723,1766631465106,-500.0,0.00012736,2]
[399713724,1766631465131,-151.0,0.00012736,2]
[399713725,1766631465157,-500.0,0.00012736,2]
[399713726,1766631465183,-200.0,0.00012736,2]
[399713727,1766631465210,-286.62012566,0.00012736,2]
[399713728,1766631466265,-213.37987434,0.00012736,2]
[399713729,1766631466293,-151.0,0.00012736,2]
[399713730,1766631466325,-500.0,0.00012736,2]
[399713731,1766631466357,-151.0,0.00012736,2]
[399713732,1766631466385,-500.0,0.00012736,2]
[399713733,1766631466426,-151.0,0.00012736,2]
[399713734,1766631466459,-500.0,0.00012736,2]
[399713735,1766631466488,-151.0,0.00012736,2]
[399713736,1766631466516,-500.0,0.00012736,2]
[399713737,1766631466543,-151.0,0.00012736,2]
[399713738,1766631466570,-500.0,0.00012736,2]
[399713739,1766631466597,-151.0,0.00012736,2]
[399713740,1766631466625,-500.0,0.00012736,2]
[399713741,1766631466652,-200.0,0.00012736,2]
[399713742,1766631466679,-151.0,0.00012736,2]
[399713743,1766631466707,-151.0,0.00012736,2]
[399713744,1766631466733,-151.0,0.00012736,2]
[399713745,1766631466764,-151.0,0.00012736,2]
[399713746,1766631466791,-151.0,0.00012736,2]
[399713747,1766631466824,-151.0,0.00012736,2]
[399713748,1766631467489,-151.0,0.00012736,2]
[399713749,1766631467516,-151.0,0.00012736,2]
[399713750,1766631467546,-151.0,0.00012736,2]
[399713751,1766631467571,-151.0,0.00012736,2]
[399713752,1766631467596,-151.0,0.00012736,2]
[399713753,1766631467620,-151.0,0.00012736,2]
[399713754,1766631467644,-500.0,0.00012736,2]
[399713755,1766631467669,-151.0,0.00012736,2]
[399713756,1766631467695,-151.0,0.00012736,2]
[399713757,1766631467721,-151.0,0.00012736,2]
[399713758,1766631467749,-151.0,0.00012736,2]
[399713759,1766631467785,-151.0,0.00012736,2]
[399713760,1766631467813,-151.0,0.00012736,2]
[399713761,1766631467838,-151.0,0.00012736,2]
[399713762,1766631467863,-151.0,0.00012736,2]
[399713763,1766631467888,-151.0,0.00012736,2]
[399713764,1766631467912,-150.0,0.00012741,2]
[399713765,1766631467937,-300.0,0.00012742,2]
[399713766,1766631467962,-150.0,0.00012742,2]
[399713767,1766631467986,-300.0,0.00012742,2]
[399713768,1766631468013,-390.39043114,0.00012742,2]
[399713769,1766631468042,-500.0,0.00012742,2]
[399713770,1766631468070,-500.0,0.00012742,2]
[399713771,1766631468099,-500.0,0.00012742,2]
[399713772,1766631468139,-500.0,0.00012742,2]
[399713773,1766631468168,-500.0,0.00012742,2]
[399713774,1766631468196,-500.0,0.00012742,2]
[399713775,1766631468225,-500.0,0.00012742,2]
[399713776,1766631468253,-500.0,0.00012742,2]
[399713777,1766631468281,-500.0,0.00012742,2]
[399713778,1766631468310,-500.0,0.00012742,2]
[399713779,1766631468341,-500.0,0.00012742,2]
[399713780,1766631468370,-500.0,0.00012742,2]
[399713781,1766631468398,-500.0,0.00012742,2]
[399713782,1766631468425,-500.0,0.00012742,2]
[399713783,1766631468453,-500.0,0.00012742,2]
[399713784,1766631468481,-500.0,0.00012742,2]
[399713785,1766631468509,-500.0,0.00012742,2]
[399713786,1766631468538,-500.0,0.00012742,2]
[399713787,1766631468565,-500.0,0.00012742,2]
[399713788,1766631468593,-500.0,0.00012742,2]
[399713789,1766631468620,-500.0,0.00012742,2]
[399713790,1766631468647,-500.0,0.00012742,2]
[399713791,1766631468673,-500.0,0.00012742,2]
[399713792,1766631468701,-500.0,0.00012742,2]
[399713793,1766631468728,-500.0,0.00012742,2]
[399713794,1766631468755,-500.0,0.00012742,2]
[399713795,1766631468782,-500.0,0.00012742,2]
[399713796,1766631468812,-500.0,0.00012742,2]
[399713797,1766631468839,-500.0,0.00012742,2]
[399713798,1766631468866,-500.0,0.00012742,2]
[399713799,1766631468892,-500.0,0.00012742,2]
[399713800,1766631468919,-219.22969452,0.00012742,2]
[399713801,1766631469003,-280.77030548,0.00012742,2]
[399713802,1766631469031,-500.0,0.00012742,2]
[399713803,1766631469059,-500.0,0.00012742,2]
[399713804,1766631469088,-500.0,0.00012742,2]
[399713805,1766631469116,-500.0,0.00012742,2]
[399713806,1766631469144,-500.0,0.00012742,2]
[399713807,1766631469171,-209.07691209,0.00012742,2]
[399713808,1766631469199,-500.0,0.00012742,2]
[399713809,1766631469226,-500.0,0.00012742,2]
[399713810,1766631469254,-500.0,0.00012742,2]
[399713811,1766631469283,-500.0,0.00012742,2]
[399713812,1766631469312,-500.0,0.00012742,2]
[399713813,1766631469349,-500.0,0.00012742,2]
[399713814,1766631469378,-225.20721271,0.00012742,2]
[399713815,1766631469408,-500.0,0.00012742,2]
[399713816,1766631469436,-500.0,0.00012742,2]
[399713817,1766631469464,-500.0,0.00012742,2]
[399713818,1766631469493,-500.0,0.00012742,2]
[399713819,1766631469523,-16784.94556972,0.00012743,2]
[399713820,1766631469585,-25000.0,0.00012743,2]
[399713821,1766631543310,-2500.0,0.00012643,2]
[399713822,1766631543341,-300.0,0.00012735,2]
[399713823,1766631543375,-898.46296694,0.00012736,2]
[399713824,1766631543405,-628.82939374,0.00012736,2]
[399713825,1766631543435,-343.43717327,0.00012736,2]
[399713826,1766631543463,-180.32884553,0.00012736,2]